Cogmind - Beta 13 @@@ ROGUE MODE // 2024.04.19 @ 21:26:46 Player: Candesce Result: Destroyed by as-35044 with Assembled Heavy Rifle Performance ------------- Evolutions (0) 0 Regions Visited (2) 400 Robots Destroyed (23) 115 Value Destroyed (541) 541 Prototype IDs (2) 40 Alien Tech Used (0) 0 Bonus (0) 0 TOTAL SCORE: 1096 Bonus ------- None Cogmind --------- Core Integrity 0/250 Matter 207/300 Energy 263/265 System Corruption 0% Temperature Cool (94) Movement Treading (320) Ox2 Location -10/Mines Parts ------- > --- POWER (1) -------- Improved Ion Engine > --- PROPULSION (2) --- Light Treads > --- UTILITY (2) ------ High-capacity Storage Unit Structural Scanner > --- WEAPON (2) ------- Beam Cannon Beam Cannon > --- INVENTORY (20) --- Improved Ion Engine Light Nuclear Core Light Treads Light Treads Heat Sink High-capacity Storage Unit Structural Scanner Transport Network Coupler Targeting Computer Targeting Computer Heavy Assault Rifle Heavy Assault Rifle Grenade Launcher Grenade Launcher Peak State ------------ > --- POWER ------------ Ion Engine > --- PROPULSION ------- Light Treads Light Treads > --- UTILITY ---------- High-capacity Storage Unit Structural Scanner > --- WEAPON ----------- Heavy Assault Rifle Heavy Assault Rifle > --- INVENTORY -------- Improved Ion Engine Light Nuclear Core Light Treads Light Treads Heat Sink High-capacity Storage Unit Structural Scanner Transport Network Coupler Light Armor Plating Beam Cannon Beam Cannon Heavy Assault Rifle Heavy Assault Rifle Grenade Launcher Grenade Launcher [Rating: 11] Favorites ----------- Power Ion Engine Engine Ion Engine Propulsion Light Treads Treads Light Treads Leg Aluminum Leg Utility High-capacity Storage Unit Device Structural Scanner Storage High-capacity Storage Unit Protection Light Armor Plating Weapon Medium Laser Energy Gun Medium Laser Energy Cannon Beam Cannon Ballistic Gun Heavy Assault Rifle Launcher Grenade Launcher Build | -11 -10 -10 ------- Run | Yrd Mat Min Slots Evolved . | . . . Power . | . . . Propulsion . | . . . Utility . | . . . Weapon . | . . . Parts Attached 46 | 8 27 11 Power 4 | 1 2 1 Engine 4 | 1 2 1 Core . | . . . Reactor . | . . . Propulsion 13 | 2 10 1 Treads 11 | 2 8 1 Leg 2 | . 2 . Wheel . | . . . Hover . | . . . Flight . | . . . Utility 13 | 2 6 5 Device 9 | 2 4 3 Storage 2 | . 2 . Processor . | . . . Hackware . | . . . Protection 2 | . . 2 Artifact . | . . . Weapon 16 | 3 9 4 Energy Gun 6 | 2 4 . Energy Cannon 2 | . . 2 Ballistic Gun 6 | 1 4 1 Ballistic Cannon . | . . . Launcher 2 | . 1 1 Special Weapon . | . . . Impact Weapon . | . . . Slashing Weapon . | . . . Piercing Weapon . | . . . Special Melee Weapon . | . . . Unidentified Prototypes . | . . . Parts Lost 11 | . 4 7 Power 2 | . 1 1 Propulsion 4 | . 2 2 Utility 3 | . 1 2 Weapon 2 | . . 2 Highest Loss Streak 6 | . 4 6 To Critical Strikes 1 | . . 1 Average Slot Usage (%) 97 | . 97 98 Engine 13 | . 13 13 Treads 24 | . 24 26 Leg 1 | . 2 . Device 17 | . 19 10 Storage 9 | . 7 14 Energy Gun 13 | . 17 . Energy Cannon 1 | . . 5 Ballistic Gun 13 | . 10 22 Naked Turns . | . . . Heaviest Build 54 | 11 52 54 Greatest Support 40 | 40 40 40 Greatest Overweight (x) 2 | 1 2 1 Average Overweight (x) . | . . 1 Largest Inventory Capacity 20 | 5 20 20 Average Capacity 13 | 5 13 20 Most Carried 20 | 1 12 20 Average Carried 8 | . 6 16 Final Capacity 20 | 5 20 20 Final Carried 14 | 1 12 14 Class Distribution -------------------- 100% | Mutant Dominant Class ---------------- Mutant | -10/Materials Mutant | -10/Mines Resources | -11 -10 -10 ----------- Run | Yrd Mat Min Matter Collected 708 | 280 280 148 Remotely . | . . . Salvage Created 856 | 119 524 213 Parts 48 | 9 29 10 Haulers Intercepted 2 | . 2 . Recyclers Shooed 1 | 1 . . Parts Field Recycled . | . . . Retrieved Matter . | . . . Parts Self-Destructed . | . . . Prevented . | . . . Kills | -11 -10 -10 ------- Run | Yrd Mat Min Combat Hostiles Destroyed 25 | . 10 15 Guns 11 | . 7 4 Cannons 2 | . . 2 AOE 12 | . 3 9 Classes Destroyed 10 | 2 5 3 Worker 1 | . 1 . Tunneler 3 | 3 . . Hauler 2 | . 2 . Recycler 2 | 1 1 . Watcher 1 | . 1 . Swarmer 3 | . 3 . Grunt 7 | . 7 . Sentry 2 | . . 2 Demolisher 2 | . . 2 Assembled 11 | . . 11 Best Kill Streak 10 | 2 7 10 Combat Bots Only 10 | . 5 10 Max Kills in Single Turn 5 | 1 5 2 Gunslinging . | . . . Exploded 3 | . 3 2 Melee . | . . . Uniques/NPCs Destroyed . | . . . Combat | -11 -10 -10 -------- Run | Yrd Mat Min Hostile Shots Fired 115 | . 69 46 Missed 24 | . 14 10 Damage Taken 1503 | . 559 944 Core 250 | . 124 126 Absorbed by Shields . | . . . Regen/Repaired (Parts) 47 | . 47 . Core Remaining (%) 100 | 100 . . Volleys Fired 75 | 11 36 28 Largest 2 | 2 2 2 Hottest 120 | 100 100 120 Shots Fired 129 | 22 57 50 Gun 110 | 22 56 32 Cannon 12 | . . 12 Launcher 7 | . 1 6 Special . | . . . Kinetic 42 | . 10 32 Thermal 80 | 22 46 12 Explosive 7 | . 1 6 Electromagnetic . | . . . Robot Hit Streak 10 | 6 10 4 Robot Miss Streak 6 | 2 6 4 Penetration Max . | . . . Secondary Targets . | . . . Shots Hit Robots 71 | 12 35 24 Core Hits 60 | 5 24 31 Critical Kills . | . . . Critical Parts Destroyed . | . . . Critical Strikes 3 | 1 2 . Burn 3 | 1 2 . Melee Attacks . | . . . Impact . | . . . Slashing . | . . . Piercing . | . . . Sneak Attacks . | . . . Combat Hostiles . | . . . Follow-up Attacks . | . . . Damage Inflicted 1769 | 150 744 875 Guns 921 | 150 491 280 Cannons 105 | . . 105 Explosions 743 | . 253 490 Melee . | . . . Ramming . | . . . Kinetic 360 | . 80 280 Thermal 666 | 150 411 105 Explosive 743 | . 253 490 Electromagnetic . | . . . Impact . | . . . Slashing . | . . . Piercing . | . . . Highest Corruption . | . . . Average Corruption . | . . . Corruption Purged . | . . . Corruption Blocked . | . . . Overload Shots . | . . . Overflow Damage 17 | . 15 2 Projectiles . | . . . Explosions 17 | . 15 2 Melee . | . . . Knockbacks . | . . . Impact . | . . . Kinetic . | . . . Secondary . | . . . Self-Inflicted Damage 5 | . 5 . Shots 1 | . 1 . Rammed . | . . . Targets Rammed . | . . . Kicked . | . . . Crushed . | . . . Highest Temperature 341 | 197 341 127 Average Temperature 122 | 71 165 63 Received Heat Transfer 285 | . 231 54 Effects 2 | . 2 . Shutdowns 1 | . 1 . Interference 1 | . 1 . Siege Activations . | . . . Robots Corrupted . | . . . Combat Hostiles . | . . . Parts Fried . | . . . Impact Corruptions . | . . . Robots Melted . | . . . Combat Hostiles . | . . . Parts Melted 2 | . 2 . Heat Transferred 2109 | 518 1369 222 Parts Sabotaged . | . . . Parts Stolen . | . . . Parts Stripped . | . . . Power Chain Reactions . | . . . Alert | -11 -10 -10 ------- Run | Yrd Mat Min Peak Influence 234 | 20 234 73 Initial 13 | . 13 . Average 54 | 10 61 52 Maximum Alert Level 1 | . 1 . Low Security (%) 92 | 100 89 100 Level 1 7 | . 10 . Level 2 . | . . . Level 3 . | . . . Level 4 . | . . . Level 5 . | . . . High Security . | . . . Max Security . | . . . Squads Dispatched 3 | . 3 . Investigation 2 | . 2 . Extermination . | . . . Reinforcement 1 | . 1 . Assault . | . . . Garrison . | . . . Intercept . | . . . Searches Triggered . | . . . Construction Impeded . | . . . Haulers Reinforced . | . . . Active Scanning Responses . | . . . Cargo Convoy Interrupts . | . . . Stealth | -11 -10 -10 --------- Run | Yrd Mat Min Distress Signals . | . . . Communications Jammed . | . . . Distress Signals . | . . . Times Spotted 33 | . 14 19 Peak Tracking Total 6 | . 6 6 Tactical Retreats . | . . . Traps | -11 -10 -10 ------- Run | Yrd Mat Min Traps Triggered 6 | . 6 . Indirectly . | . . . Trap Hack Attempts . | . . . Triggered . | . . . Disarmed 2 | . 2 . Reprogrammed . | . . . Reused . | . . . Traps Extracted . | . . . Installed . | . . . Triggered . | . . . Machines | -11 -10 -10 ---------- Run | Yrd Mat Min Machines Disabled 1 | . 1 . Max in Single Turn 1 | . 1 . Machines Repaired . | . . . Machines Dismantled . | . . . Machines Sabotaged . | . . . Overloaded Fab Kills . | . . . Hacking | -11 -10 -10 --------- Run | Yrd Mat Min Machines Accessed 8 | . 8 . Terminals 6 | . 6 . Fabricators . | . . . Repair Stations 1 | . 1 . Recycling Units 1 | . 1 . Scanalyzers . | . . . Garrison Access . | . . . Total Hacks 26 | . 26 . Successful 14 | . 14 . Failed 12 | . 12 . Catastrophic 1 | . 1 . Database Lockouts . | . . . Manual 11 | . 11 . Terminals 21 | . 21 . Fabricators . | . . . Repair Stations 3 | . 3 . Recycling Units 2 | . 2 . Scanalyzers . | . . . Garrison Access . | . . . Terminal Hacks 8 | . 8 . Part Schematic 1 | . 1 . Prototype ID Bank 1 | . 1 . Branch Access Points 1 | . 1 . Terminal Index 1 | . 1 . Unreport Threat 2 | . 2 . Disarm Traps 1 | . 1 . Hauler Manifests 1 | . 1 . Fabricator Hacks . | . . . Repair Station Hacks 2 | . 2 . Scan Component 1 | . 1 . Repair 1 | . 1 . Recycling Unit Hacks 1 | . 1 . Report Inventory 1 | . 1 . Scanalyzer . | . . . Garrison Access Hacks . | . . . Unauthorized Hacks 3 | . 3 . Terminals 2 | . 2 . Botnet 1 | . 1 . Operators 1 | . 1 . Fabricators . | . . . Repair Stations . | . . . Recycling Units 1 | . 1 . Tunnel 1 | . 1 . Scanalyzers . | . . . Garrison Access . | . . . Data Cores Recovered . | . . . Used . | . . . Hacking Detections 8 | . 8 . Full Trace Events 1 | . 1 . Feedback Events . | . . . Feedback Blocked . | . . . Robot Schematics Acquired . | . . . Robots Built . | . . . Authchips . | . . . Time . | . . . Total Robot Build Rating . | . . . Part Schematics Acquired 1 | . 1 . Parts Built . | . . . Authchips . | . . . Time . | . . . Total Part Build Rating . | . . . Parts Repaired 1 | . 1 . Time 32 | . 32 . Parts Recycled . | . . . Recycled Matter . | . . . Retrieved Matter . | . . . Retrieved Components . | . . . Parts Scanalyzed . | . . . Part Schematics Acquired . | . . . Parts Damaged . | . . . Bothacking | -11 -10 -10 ------------ Run | Yrd Mat Min Used RIF Installer . | . . . Robots Hacked . | . . . Non-combat . | . . . Combat . | . . . Robot Hacks Applied . | . . . Relay Couplers Released . | . . . Fabnet Peak Effective % . | . . . Robots Rewired . | . . . Allies Hacked . | . . . Hacks Repelled . | . . . Allies | -11 -10 -10 -------- Run | Yrd Mat Min Total Allies . | . . . Largest Group . | . . . Highest-Rated Group . | . . . Highest-Rated Ally . | . . . Total Orders . | . . . Ally Attacks . | . . . Total Damage . | . . . Kills . | . . . Allies Corrupted . | . . . Allies Melted . | . . . Intel | -11 -10 -10 ------- Run | Yrd Mat Min Robot Analysis Total . | . . . Derelict Logs Recovered . | . . . Drone Launches . | . . . Drone Recoveries . | . . . Exploration | -11 -10 -10 ------------- Run | Yrd Mat Min Turns Passed 1204 | 131 825 248 Spaces Moved 419 | 53 307 59 Core 5 | 4 1 . Treads 385 | 49 277 59 Legs 29 | . 29 . Wheels . | . . . Hover . | . . . Flight . | . . . Fastest Speed 50 | 50 100 240 Average Speed 201 | 152 201 240 Slowest Speed 320 | 160 320 240 Overloaded Moves . | . . . Propulsion Burnouts . | . . . Robots Hopped . | . . . Cave-ins Triggered . | . . . Exploration Rate (%) 24 | 5 55 12 Regions Visited 2 Branch Regions 1 Pre-discovered Areas 1 | . 1 . Known Exits Taken 1 | . 1 . Unknown Exits Taken 1 | 1 . . Scrap Searched . | . . . Spaces Dug 9 | . . 9 Terrain Destroyed 47 | . 7 40 Melee . | . . . Projectile . | . . . AOE 47 | . 7 40 Terrain Rammed . | . . . Walls Destroyed . | . . . Machines Disabled . | . . . Actions | -11 -10 -10 --------- Run | Yrd Mat Min Total 638 | 77 448 113 Wait 67 | 5 55 7 Move 417 | 52 306 59 Hop . | . . . Pick Up 23 | 1 14 8 Fast Attach 25 | 7 18 . Attach 7 | . 1 6 Detach 1 | . 1 . Swap 14 | 1 8 5 Drop 9 | . 9 . Fire 75 | 11 36 28 Melee . | . . . Ram . | . . . Kick . | . . . Crush . | . . . Escape Stasis . | . . . Rewire . | . . . Trap . | . . . Miscellaneous . | . . . Route ------- -11/Scrapyard -10/Materials (discovered 2 exits: [*Mat] / *Min) -10/Mines History --------- Turn | Location | Event 7 | -11/Scrapyard | Discovered new exit (range 15) 132 | -11/Scrapyard | Entered Materials 308 | -10/Materials | Build established: Mutant 471 | -10/Materials | Lost 4 parts (1p2n1u) 683 | -10/Materials | Discovered new exit (range 13) 830 | -10/Materials | Identified exit to Mines 910 | -10/Materials | Repaired Hvy. Assault Rifle 932 | -10/Materials | Derelicts attacked the area 957 | -10/Materials | Entered Mines 974 | -10/Mines | Core integrity fell below 50% 1090 | -10/Mines | Assembled infested the area 1144 | -10/Mines | Destroyed 10 combat bots 1155 | -10/Mines | Core integrity fell below 20% 1194 | -10/Mines | Lost 6 parts (1p1n2u2w) 1205 | -10/Mines | Destroyed by as-35044 with Assembled Heavy Rifle Last Messages --------------- 01156_ Destroyed Shock Absorption System. 01157_ The unstable cave ceiling collapses. 01157_ Lgt. Treads destroyed. 01158_ The unstable cave ceiling collapses. 01159_ D-53 Grenadier destroyed. 01161_ The unstable cave ceiling collapses. 01161_ Hvy. Assault Rifle destroyed. 01161_ Lgt. Armor Plating destroyed. 01163_ The unstable cave ceiling collapses. 01163_ Ion Engine destroyed. 01165_ The unstable cave ceiling collapses. 01166_ D-53 Grenadier destroyed. 01174_ The unstable cave ceiling collapses. 01179_ Acquired 88 matter. 01183_ The unstable cave ceiling collapses. 01196_ as-79195 destroyed. 01203_ The unstable cave ceiling collapses. 01204_ Critical hit (Destroy). 01204_ Lgt. Treads destroyed. 01205_ The unstable cave ceiling collapses. Map ----- +----------------------------------------------------+ | | | | | | | | | ???##########??????????????????????? | | ???###" "###??????????????????????? | | ???##! !!##??????????????????????? | | ???## ]!##??????????????????????? | | ???### ###??????????????????????? | | ??#####++####??????????????????????? | | ?#### [[ ###?????????????????????? | | ?### % ######??????????????????? | | ?## ## ######?????????????????? | | ?## ###?????????????????? | | ?## ##?????????????????? | | ?### ## ##?????????????????? | | ?#### #### ########????????????? | | ??### ##### #########????????????? | | ??### ##?## ??????? | | ??## ##?### #########????????????? | | ??### ###### #########????????????? | | ??########## ###########??????????? | | ???##### = ##########??????????? | | ????### # ##??????????? | | ????## ## # ##??????????? | | ????## @ % ### #??????????? | | ????## ]%= # ?????????? | | ????## ]% a ## ????????? | | ????## # # # # =????????? | | ????#### # ## % ???????? | | ????#### # #### # a ???????? | | ?????########### ## # ???????? | | ??????#########?### # ###???????? | | ???????????????? ## # ##???????? | | ?????????????????????? # ###???????? | | ?????????????????????? ##????????? | | ???????????????????????????????????? | | ???????????????????????????????????? | | ???????????????????????????????????? | | ???????????????????????????????????? | | ???????????????????????????????????? | | ???????????????????????????????????? | | ???????????????????????????????????? | | ???????????????????????????????????? | | ???????????????????????????????????? | | ???????????????????????????????????? | | ???????????????????????????????????? | | ???????????????????????????????????? | | ???????????????????????????????????? | | ???????????????????????????????????? | +----------------------------------------------------+ Best States ------------- Heat Dissipation 35 Energy Generation 12 Energy Capacity 265 Matter Stores 300 Matter Capacity 300 Sight Range 16 Terrain Scan Range 16 Terrain Scan Density 10 Armor Coverage 150 Evasion (%) 45 Recoil Reduction 2 Item Schematics ----------------- ECM Suite | -10/Materials | Hacked Robot Schematics ------------------ None Fabricated ------------ Nothing Alien Tech Used ----------------- None Achievements -------------- None Challenges ------------ None Game ------ Seed MasterGuidanceThruster Manual? 0 Play Time 00:15:44 Cumulative 165.2 hours Start 2024.04.19 @ 19:13:01 End 2024.04.19 @ 21:26:46 Sessions 3 Manual Loads 0 Difficulty Rogue Special Mode None Game No. 217 Rogue 217 Adventurer 0 Explorer 0 Win Type - Total 4 Types 3/0/0/1/0/0/0/0/0 Lore% 61 Gallery% 71 Achievement% 57 Wizard Run 0 Options --------- Layout 0 ASCII 0 Keyboard 0 Movement Numpad Keybinds 0 Fullscreen 1 Font 16/SmallcapsGlow Map View 50x54 Zoom Use 0% Tactical HUD 1 Map Filters NONE Filters NONE Steam 1 RUN: 5e93d3fb-8d13-4ba6-b92a-9fad5c9231e7